bitfinex-derivatives/quotes_SOLF0:USTF0_20260105
["timestamp","ask_amount","ask_price","bid_price","bid_amount"]
[1767613702401,0.32187863,135.73,135.66,6.96580022]
[1767613702603,0.32187863,135.76,135.67,0.32810022]
[1767613703703,6.634,135.74,135.67,6.96540022]
[1767613703908,0.32187863,135.75,135.67,0.32810022]
[1767613704718,0.32187863,135.74,135.67,0.32810022]
[1767613705514,0.32187863,135.73,135.67,0.32810022]
[1767613705708,22.15,135.89,135.67,0.32810022]
[1767613706013,6.95397863,135.78,135.71,0.32810022]
[1767613706397,0.32187863,135.77,135.71,0.32810022]
[1767613707410,0.32187863,135.76,135.69,0.32810022]
[1767613707805,0.32187863,135.76,135.69,6.96440022]
[1767613710112,6.95487863,135.76,135.69,6.96440022]
[1767613711306,0.33598654,135.75,135.69,0.32810022]
[1767613713118,6.96938654,135.75,135.69,0.32810022]
[1767613715618,6.97008654,135.74,135.67,0.3351868]
[1767613715807,0.33598654,135.73,135.67,0.3351868]
[1767613716519,0.33598654,135.75,135.67,0.3351868]
[1767613717321,0.33598654,135.75,135.68,6.9719868]
[1767613718019,6.96988654,135.74,135.68,0.3351868]
[1767613718219,0.33598654,135.74,135.68,0.3351868]
[1767613718712,3.4288718,135.77,135.68,6.9715868]
[1767613718713,0.33598654,135.76,135.68,6.9715868]
[1767613719518,6.6336,135.75,135.68,6.9715868]
[1767613719826,6.96958654,135.75,135.68,6.9715868]
[1767613721731,0.33598654,135.74,135.68,0.3351868]
[1767613721917,0.33598654,135.75,135.68,0.3351868]
[1767613722325,0.33598654,135.75,135.69,0.3351868]
[1767613724333,6.96948654,135.75,135.69,0.3351868]
[1767613725034,6.96988654,135.74,135.69,0.3351868]
[1767613727930,6.6335,135.75,135.69,0.3351868]
[1767613728433,6.6341,135.74,135.69,0.3351868]
[1767613728630,6.97008654,135.74,135.69,0.3351868]
[1767613732835,0.31041264,135.75,135.7,6.6357]
[1767613733931,0.31041264,135.75,135.69,0.3351868]
[1767613734831,0.31041264,135.75,135.69,6.9713868]
[1767613735235,6.94391264,135.75,135.69,0.3351868]
[1767613735442,0.31041264,135.74,135.65,0.3182705]
[1767613736637,0.31041264,135.74,135.68,6.6368]
[1767613737237,0.31041264,135.73,135.68,6.6368]
[1767613738236,0.31041264,135.75,135.69,0.3182705]
[1767613739235,0.31041264,135.74,135.66,0.3182705]
[1767613739739,6.94531264,135.72,135.66,6.9560705]
[1767613740438,0.31041264,135.71,135.66,0.3182705]
[1767613741541,6.94591264,135.71,135.66,0.3182705]
[1767613742042,6.94591264,135.71,135.64,6.95928307]
[1767613742740,6.94591264,135.71,135.65,6.95878307]
[1767613743335,3.4288718,135.73,135.67,0.32048307]
[1767613743336,6.6344,135.73,135.67,0.32048307]
[1767613743942,6.96467708,135.73,135.67,0.32048307]
[1767613744142,6.96467708,135.73,135.67,6.95778307]
[1767613746339,0.33027708,135.73,135.67,6.95778307]
[1767613753245,6.96467708,135.73,135.67,6.95778307]
[1767613753450,0.33027708,135.71,135.65,6.95848307]
[1767613754549,6.96587708,135.71,135.65,6.95848307]
[1767613754951,0.33027708,135.73,135.67,6.95778307]
[1767613760954,0.33027708,135.73,135.68,0.32048307]
[1767613761655,6.6333,135.76,135.7,0.32048307]
[1767613762142,6.96357708,135.76,135.7,0.32048307]
[1767613762544,0.33027708,135.76,135.7,0.32048307]
[1767613763548,0.33027708,135.76,135.7,6.95628307]
[1767613766355,6.96227708,135.78,135.71,6.95578307]
[1767613770854,6.6325,135.77,135.71,6.95578307]
[1767613771252,0.33027708,135.78,135.73,0.33415073]
[1767613771451,0.33027708,135.78,135.69,2.1913587]
[1767613771751,0.33027708,135.78,135.7,0.33415073]
[1767613772567,0.33027708,135.78,135.72,0.33415073]
[1767613772568,6.96237708,135.78,135.72,0.33415073]
[1767613776159,6.96237708,135.78,135.71,6.6354]
[1767613776160,0.33881663,135.81,135.73,0.33415073]
[1767613776364,5.59886591,135.8,135.74,0.33415073]
[1767613776560,0.33881663,135.81,135.74,0.33415073]
[1767613776760,5.59785781,135.8,135.74,0.33415073]
[1767613776957,0.33881663,135.81,135.74,0.33415073]
[1767613777262,8.12803492,135.8,135.74,0.33415073]
[1767613777460,0.33881663,135.79,135.71,0.33415073]
[1767613777659,0.33881663,135.78,135.71,0.33415073]
[1767613778664,6.6325,135.77,135.72,0.33415073]
[1767613780060,6.97131663,135.77,135.72,0.33415073]
[1767613780266,6.633,135.76,135.72,0.33415073]
[1767613781164,6.633,135.76,135.7,6.97005073]
[1767613781965,9.16267533,135.77,135.7,6.97005073]
[1767613782167,9.16267533,135.77,135.71,0.33415073]
[1767613782663,0.33881663,135.79,135.72,6.96885073]
[1767613782861,2.1913587,135.78,135.72,0.33415073]
[1767613783063,2.53017533,135.78,135.72,0.33415073]
[1767613784573,0.33881663,135.77,135.72,0.33415073]
[1767613787470,0.33881663,135.77,135.72,6.96885073]
[1767613787671,0.33881663,135.8,135.73,0.33415073]
[1767613787873,2.53017533,135.79,135.73,0.33415073]
[1767613788274,0.33881663,135.78,135.73,0.33415073]
[1767613788876,0.33881663,135.78,135.73,6.96845073]
[1767613789373,0.33881663,135.78,135.71,6.96935073]
[1767613792380,6.97111663,135.78,135.71,6.96935073]
[1767613794185,6.97122775,135.77,135.71,0.33415073]
[1767613795984,6.6332,135.76,135.71,0.33415073]
[1767613797376,6.634,135.74,135.68,6.95970127]
[1767613797575,6.634,135.74,135.69,0.32320127]
[1767613799274,0.33872775,135.75,135.69,6.95950127]
[1767613800483,0.33872775,135.73,135.67,41.16560929]
[1767613800888,9.1402188,135.71,135.65,0.32090227]
[1767613801588,0.3134601,135.71,135.65,6.95920227]
[1767613804802,0.3134601,135.71,135.65,0.32090227]
[1767613805001,2.5048188,135.7,135.64,6.6388]
[1767613806101,0.3134601,135.69,135.64,6.6388]
[1767613806398,2.1913587,135.7,135.63,0.32090227]
[1767613806399,0.3134601,135.72,135.63,0.32090227]
[1767613807801,0.3134601,135.72,135.64,6.95970227]
[1767613808706,0.3134601,135.71,135.64,6.95970227]
[1767613811907,0.3134601,135.71,135.65,0.32090227]
[1767613816403,6.9488601,135.71,135.65,0.32090227]
[1767613818012,0.3134601,135.71,135.65,6.95900227]
[1767613824017,6.9488601,135.71,135.65,0.32090227]
[1767613825113,10.37424777,135.71,135.65,0.32090227]
[1767613825815,0.3134601,135.69,135.61,0.32090227]
[1767613826422,6.6369,135.68,135.62,0.32090227]
[1767613826620,6.9503601,135.68,135.62,0.32090227]
[1767613830024,6.9503601,135.68,135.62,6.96060227]
[1767613830822,6.636,135.7,135.63,0.32558029]
[1767613831219,0.30953162,135.71,135.63,0.32558029]
[1767613831725,0.30953162,135.71,135.63,6.96488029]
[1767613832626,0.30953162,135.7,135.63,6.96488029]
[1767613832825,0.30953162,135.69,135.63,6.96488029]
[1767613837327,0.30953162,135.69,135.63,0.32558029]
[1767613837731,87.1,135.72,135.59,103.3061]
[1767613837732,0.30953162,135.72,135.65,0.32558029]
[1767613838327,6.94443162,135.72,135.65,0.32558029]
[1767613838625,0.30953162,135.71,135.65,0.32558029]
[1767613839025,87.40953162,135.73,135.66,0.32558029]
[1767613839635,90.83491929,135.75,135.67,0.32558029]
[1767613839936,0.30953162,135.75,135.67,0.32558029]
[1767613840434,0.30953162,135.75,135.65,103.2603]
[1767613840435,0.30953162,135.75,135.69,6.96188029]
[1767613843143,6.6329,135.76,135.7,0.32558029]
[1767613843339,6.94243162,135.76,135.7,0.32558029]
[1767613844546,0.30953162,135.75,135.7,0.32558029]
[1767613849759,6.94323162,135.75,135.7,0.32558029]
[1767613855761,6.95823057,135.74,135.67,6.96299091]
[1767613855958,0.32413057,135.73,135.67,6.96299091]
[1767613858165,6.95853057,135.73,135.67,6.96299091]
[1767613858464,0.32413057,135.73,135.68,0.32569091]
[1767613859572,6.95853057,135.73,135.68,0.32569091]
[1767613860777,6.6349,135.72,135.68,0.32569091]
[1767613861072,6.6349,135.72,135.66,6.9620871]
[1767613861073,6.97047779,135.72,135.66,6.9620871]
[1767613864072,6.96977779,135.74,135.68,0.3242871]
[1767613867378,0.33557779,135.74,135.68,0.3242871]
[1767613868484,2.52722583,135.73,135.66,6.9620871]
[1767613868780,0.33557779,135.72,135.66,6.9620871]
[1767613869879,0.33557779,135.72,135.66,0.3242871]
[1767613870583,6.97057779,135.72,135.66,0.3242871]
[1767613871772,0.33557779,135.71,135.66,0.3242871]
[1767613872173,9.16262583,135.71,135.66,0.3242871]
[1767613875280,9.16262583,135.71,135.64,6.6388]
[1767613875479,9.16262583,135.71,135.64,6.9630871]
[1767613875983,6.97197779,135.69,135.64,0.3242871]
[1767613876186,9.16362583,135.69,135.64,0.3242871]
[1767613876883,6.97247779,135.68,135.62,6.9636871]
[1767613877082,0.33557779,135.67,135.62,6.9636871]
[1767613877275,2.52722583,135.67,135.6,6.9650871]
[1767613878575,6.6378,135.66,135.6,6.9650871]
[1767613879376,9.16452583,135.67,135.6,6.9650871]
[1767613882596,9.16452583,135.67,135.62,0.3242871]
[1767613883299,2.52722583,135.67,135.62,0.3242871]
[1767613885298,2.52722583,135.67,135.62,6.9639871]
[1767613886191,2.52722583,135.67,135.63,6.6393]
[1767613889585,2.19164804,135.67,135.63,0.3242871]
[1767613896199,6.97179091,135.68,135.63,0.3242871]
[1767613896406,9.16343895,135.68,135.63,0.3242871]
[1767613898306,0.33489091,135.67,135.61,6.95024552]
[1767613899500,0.33489091,135.67,135.62,0.30994552]
[1767613899692,0.33489091,135.69,135.63,0.30994552]
[1767613900602,0.33489091,135.68,135.63,0.30994552]
[1767613903909,9.16243895,135.7,135.64,0.30994552]
[1767613904106,0.33489091,135.69,135.64,0.30994552]
[1767613905602,0.33489091,135.69,135.64,6.94874552]
[1767613908110,8.82754804,135.7,135.64,6.94874552]
[1767613908310,9.16243895,135.7,135.64,6.94874552]
[1767613913414,8.82714804,135.71,135.65,0.3145092]
[1767613913616,2.19164804,135.71,135.66,0.3145092]
[1767613915616,2.52740915,135.71,135.66,0.3145092]
[1767613917018,0.33576111,135.71,135.66,0.3145092]
[1767613923822,0.33576111,135.71,135.66,6.9522092]
[1767613924019,96.25632627,135.73,135.67,0.32859292]
[1767613925826,0.33027823,135.72,135.67,0.32859292]
[1767613932430,103.1655,135.78,135.7,0.32859292]
[1767613932628,112.1964365,135.77,135.68,0.32859292]
[1767613932934,3.42450264,135.75,135.64,0.32859292]
[1767613933127,3.42450264,135.73,135.64,0.32859292]
[1767613933325,3.42450264,135.73,135.62,247.97433297]
[1767613933326,3.42450264,135.73,135.66,6.96639292]
[1767613934125,3.42450264,135.73,135.67,0.32859292]
[1767613934435,3.75478087,135.73,135.67,0.32859292]
[1767613934834,3.75478087,135.73,135.67,6.96589292]
[1767613937342,0.33027823,135.73,135.67,6.96589292]
[1767613939335,0.33027823,135.73,135.67,0.32859292]
[1767613944850,6.96467823,135.73,135.67,0.32859292]
[1767613955056,0.3107036,135.72,135.67,0.32859292]
[1767613965374,0.3107036,135.72,135.67,6.96589292]
[1767613976481,6.6344,135.73,135.68,0.33418752]
[1767613976678,0.33776101,135.76,135.7,0.33418752]
[1767613976983,5.61022772,135.75,135.7,0.33418752]
[1767613977172,0.33776101,135.76,135.7,0.33418752]
[1767613977377,5.61022819,135.75,135.7,0.33418752]
[1767613977574,0.33776101,135.76,135.7,6.96988752]
[1767613977781,0.33776101,135.76,135.67,106.66990264]
[1767613978080,0.33776101,135.79,135.71,0.33418752]
[1767613978385,5.60876321,135.78,135.71,0.33418752]
[1767613978574,0.33776101,135.79,135.71,0.33418752]
[1767613978776,5.94311073,135.78,135.71,0.33418752]
[1767613979085,0.33776101,135.78,135.71,0.33418752]
[1767613979682,0.33776101,135.77,135.69,0.33418752]
[1767613979872,0.33776101,135.76,135.69,0.33418752]
[1767613980079,0.33776101,135.76,135.7,0.33418752]
[1767613980776,0.33776101,135.76,135.7,6.96998752]
[1767613982587,0.33776101,135.76,135.71,0.33194826]
[1767613982789,6.96722502,135.78,135.71,6.96734826]
[1767613982991,0.33502502,135.78,135.72,0.33194826]
[1767613984487,6.96652502,135.79,135.7,0.33194826]
[1767613984682,0.33502502,135.78,135.7,0.33194826]
[1767613984882,0.33502502,135.78,135.71,0.33194826]
[1767613985681,6.96702502,135.78,135.71,6.96734826]
[1767613986190,0.33502502,135.77,135.71,6.96734826]
[1767613987291,0.33502502,135.77,135.72,0.33194826]
[1767613990390,2.18992009,135.78,135.72,0.33194826]
[1767613990591,2.52494511,135.79,135.73,0.33194826]
[1767613990791,0.33502502,135.78,135.73,0.33194826]
[1767613992305,2.52494511,135.8,135.74,0.33194826]
[1767613992798,0.33502502,135.79,135.74,0.33194826]
[1767613994402,0.33502502,135.81,135.75,0.33194826]
[1767613994894,2.52494511,135.8,135.75,0.33194826]
[1767613995293,0.33502502,135.79,135.73,0.33194826]
[1767613995500,2.52494511,135.78,135.73,0.33194826]
[1767613995702,0.33502502,135.77,135.71,0.33194826]
[1767613996708,0.33502502,135.77,135.71,6.96704826]
[1767613996903,2.18992009,135.78,135.72,0.33194826]
[1767613997095,8.82192009,135.78,135.73,0.37850706]
[1767613997501,9.15694511,135.78,135.73,0.37850706]
[1767613999308,0.33502502,135.78,135.73,0.37850706]
[1767614003406,0.05142977,135.77,135.73,0.37850706]
[1767614004905,0.38645479,135.77,135.73,0.0465588]
[1767614012614,7.01895479,135.77,135.73,0.0465588]
[1767614013914,9.20887488,135.77,135.73,0.0465588]
[1767614018020,2.57637488,135.77,135.73,0.0465588]
[1767614018418,0.38645479,135.77,135.73,0.0465588]
[1767614025827,0.38645479,135.77,135.73,6.6807588]
[1767614026023,0.05142977,135.77,135.73,7.01874982]
[1767614031129,0.05142977,135.77,135.73,0.38454982]
[1767614031831,0.3647929,135.77,135.73,0.0465588]
[1767614033734,2.55471299,135.77,135.73,0.0465588]
[1767614035139,0.3647929,135.77,135.73,0.0465588]
[1767614035325,2.55471299,135.77,135.73,0.0465588]
[1767614039342,0.3647929,135.77,135.73,0.0465588]
[1767614052553,0.3647929,135.77,135.73,6.6808588]
[1767614055253,0.05142977,135.77,135.73,6.99873697]
[1767614061558,0.05142977,135.77,135.74,0.31787817]
[1767614061854,0.32056302,135.79,135.74,0.31787817]
[1767614062459,93.671,135.8,135.74,0.31787817]
[1767614063150,93.99156302,135.8,135.74,0.31787817]
[1767614064949,6.95156302,135.8,135.74,0.31787817]
[1767614066358,6.95156302,135.8,135.74,6.95177817]
[1767614067253,0.32056302,135.8,135.75,6.95127817]
[1767614068058,0.32056302,135.8,135.76,0.05030106]
[1767614068256,0.32056302,135.8,135.76,6.68300106]
[1767614068452,6.95066302,135.82,135.76,7.00087923]
[1767614068851,0.32056302,135.81,135.76,7.00087923]
[1767614072464,10.38442541,135.83,135.77,6.94232851]
[1767614072764,5.93035782,135.82,135.77,6.94232851]
[1767614072960,0.33301939,135.82,135.77,6.94232851]
[1767614076365,0.33301939,135.82,135.77,0.30992851]
[1767614078265,10.05140602,135.83,135.77,0.30992851]
[1767614078471,10.38442541,135.83,135.77,0.30992851]
[1767614080184,6.63,135.82,135.77,0.30992851]
[1767614081586,6.6305,135.81,135.76,0.05030106]
[1767614081786,0.33301939,135.76,135.7,0.30992851]
[1767614082386,3.75482541,135.75,135.7,0.30992851]
[1767614082678,3.75482541,135.75,135.68,0.30992851]
[1767614083684,10.38822541,135.75,135.69,0.30992851]
[1767614087379,6.96641939,135.75,135.69,0.30992851]
[1767614089086,0.33301939,135.73,135.68,0.30992851]
[1767614089279,0.33301939,135.75,135.68,0.30992851]
[1767614090084,0.33301939,135.75,135.69,6.94622851]
[1767614090282,0.33301939,135.77,135.7,0.30992851]
[1767614091290,0.33301939,135.77,135.7,6.94532851]
[1767614091890,0.33301939,135.77,135.71,6.6353]
[1767614095695,0.33301939,135.77,135.71,6.96055812]
[1767614095882,0.33301939,135.77,135.72,6.96015812]
[1767614096386,0.33301939,135.77,135.72,0.32525812]
[1767614100398,0.33011368,135.79,135.72,0.32525812]
[1767614100896,0.33678964,135.78,135.73,6.6343]
[1767614102088,0.33678964,135.78,135.72,0.32525812]
[1767614102292,0.33678964,135.77,135.7,0.3336962]
[1767614103599,6.96928964,135.77,135.71,6.9690962]
[1767614104801,6.96868964,135.79,135.72,0.3336962]
[1767614106504,0.33678964,135.78,135.72,0.3336962]
[1767614106803,0.33678964,135.78,135.73,6.6344]
[1767614112905,0.33678964,135.78,135.73,6.9680962]
[1767614118396,8.82112132,135.79,135.74,0.3336962]
[1767614119410,9.15791096,135.79,135.74,0.3336962]
[1767614126919,6.96828964,135.79,135.74,0.3336962]
[1767614129610,9.15691096,135.81,135.75,6.9670962]
[1767614131416,2.52641096,135.81,135.75,6.9670962]
[1767614133910,2.52641096,135.81,135.76,0.33580256]
[1767614137719,9.15701096,135.81,135.76,0.33580256]
[1767614145726,0.33678964,135.81,135.76,0.33580256]
[1767614145928,0.33678964,135.81,135.76,6.96870256]
[1767614147331,103.0777,135.9,135.79,0.33580256]
[1767614147332,0.33605937,135.85,135.79,0.33580256]
[1767614147633,5.59481139,135.84,135.79,0.33580256]
[1767614147834,2.18962132,135.83,135.79,0.33580256]
[1767614148219,2.18962132,135.83,135.77,0.33580256]
[1767614148220,2.52568069,135.83,135.77,0.33580256]
[1767614148424,0.33605937,135.82,135.77,0.33580256]
[1767614149625,2.18962132,135.81,135.77,0.33580256]
[1767614150129,2.52568069,135.81,135.75,0.33580256]
[1767614150529,0.33605937,135.8,135.75,0.33580256]
[1767614150727,0.33605937,135.78,135.73,0.33580256]
[1767614151633,2.52568069,135.78,135.73,0.33580256]
[1767614154422,0.33605937,135.78,135.73,6.97010256]
[1767614156235,2.18962132,135.75,135.71,6.97445054]
[1767614156438,0.31170703,135.78,135.71,0.33955054]
[1767614157234,0.31170703,135.78,135.73,6.6343]
[1767614159240,0.31170703,135.78,135.73,6.97385054]
[1767614159438,2.18962132,135.79,135.74,6.6337]
[1767614159740,2.18962132,135.79,135.74,6.97325054]
[1767614159936,2.50132835,135.8,135.74,6.97325054]
[1767614161938,2.18962132,135.8,135.76,0.32697094]
[1767614163244,0.32293131,135.82,135.76,0.32697094]
[1767614163444,2.51255263,135.81,135.76,0.32697094]
[1767614165346,6.95293131,135.83,135.76,0.32697094]
[1767614165648,5.59037513,135.82,135.76,0.32697094]
[1767614165836,0.32293131,135.82,135.76,0.32697094]
[1767614166538,2.18962132,135.83,135.77,6.95937094]
[1767614168147,2.51255263,135.84,135.78,0.32697094]
[1767614170047,9.14165263,135.84,135.78,0.32697094]
[1767614173252,0.32293131,135.83,135.78,0.32697094]
[1767614175255,0.32293131,135.82,135.77,6.6324]
[1767614179059,6.95333131,135.82,135.77,0.32697094]
[1767614179254,6.95333131,135.82,135.75,0.32697094]
[1767614179453,0.32293131,135.81,135.75,0.32697094]
[1767614179759,6.95343131,135.81,135.75,6.96037094]
[1767614180652,0.32293131,135.8,135.75,6.96037094]
[1767614184448,0.32293131,135.8,135.73,6.96097094]
[1767614185656,6.95413131,135.8,135.73,6.96097094]
[1767614188457,6.95453131,135.79,135.73,6.96097094]
[1767614189264,6.95453131,135.79,135.73,0.32697094]
[1767614190264,0.32293131,135.77,135.71,0.32697094]
[1767614192561,6.633,135.76,135.71,0.32697094]
[1767614194061,6.94993678,135.76,135.71,0.32697094]
[1767614195266,6.95093678,135.74,135.68,6.96121327]
[1767614195863,6.95133678,135.73,135.68,0.32481327]
[1767614196053,0.31693678,135.73,135.68,0.32481327]
[1767614196255,0.31693678,135.72,135.66,0.32481327]
[1767614196461,0.31693678,135.71,135.65,34.72592474]
[1767614196762,0.31693678,135.71,135.63,0.32481327]
[1767614197058,0.31693678,135.71,135.64,6.96361327]
[1767614197263,0.31693678,135.71,135.64,0.32481327]
[1767614197663,6.95343678,135.69,135.64,0.32481327]
[1767614201451,0.31693678,135.69,135.64,0.32481327]
[1767614203071,0.31693678,135.69,135.62,0.32481327]
[1767614203271,0.31693678,135.68,135.62,0.32481327]
[1767614204366,0.31693678,135.68,135.63,6.6393]
[1767614205770,0.31693678,135.7,135.64,6.96361327]
[1767614213183,6.95313678,135.7,135.64,0.32481327]
[1767614214580,10.37203183,135.7,135.64,0.32481327]
[1767614221286,0.33579092,135.68,135.63,6.639]
[1767614221588,0.33579092,135.68,135.63,6.95474253]
[1767614229798,6.6366,135.69,135.63,6.95474253]
[1767614231698,6.6366,135.69,135.64,0.31574253]
[1767614232596,6.97109092,135.72,135.67,0.31574253]
[1767614232792,0.33579092,135.72,135.67,0.31574253]
[1767614232989,87.43579092,135.74,135.67,0.31574253]
[1767614233394,0.33579092,135.73,135.67,0.31574253]
[1767614233594,0.33579092,135.73,135.67,6.95304253]
[1767614234101,0.33579092,135.73,135.67,0.31574253]
[1767614234400,87.43579092,135.75,135.68,6.95214253]
[1767614235694,94.06929092,135.75,135.69,0.31574253]
[1767614236403,6.96929092,135.75,135.69,0.31574253]
[1767614236710,9.1601742,135.75,135.69,0.31574253]
[1767614237002,9.1601742,135.75,135.71,0.04978446]
[1767614237397,6.6335,135.75,135.71,0.04978446]
[1767614237604,0.33579092,135.76,135.71,0.04978446]
[1767614240108,0.33579092,135.76,135.71,0.36552699]
[1767614246809,2.5266742,135.76,135.71,0.36552699]
[1767614250613,0.33579092,135.76,135.71,0.36552699]
[1767614253009,93.7328,135.77,135.71,7.00082699]
[1767614253310,94.06218285,135.77,135.71,7.00082699]
[1767614253512,6.96218285,135.77,135.71,7.00082699]
[1767614257615,0.32938285,135.77,135.72,6.9446523]
[1767614262415,8.82288328,135.78,135.73,0.3097523]
[1767614263318,6.96188285,135.77,135.71,6.9451523]
[1767614265810,6.633,135.76,135.71,0.3097523]
[1767614266014,0.32938285,135.75,135.69,0.3097523]
[1767614266218,2.52026613,135.75,135.69,0.3097523]
[1767614267622,6.634,135.74,135.69,0.3097523]
[1767614267821,2.52026613,135.75,135.69,0.3097523]
[1767614268722,2.52026613,135.75,135.69,6.9460523]
[1767614268912,0.32938285,135.75,135.7,0.3097523]
[1767614270618,0.32938285,135.75,135.7,6.9455523]
[1767614271027,2.52026613,135.75,135.7,6.9455523]
[1767614272626,0.32938285,135.75,135.7,6.9455523]
[1767614272830,2.52026613,135.75,135.7,6.9455523]
[1767614275818,2.19088328,135.76,135.71,6.97457165]
[1767614276630,0.34286126,135.77,135.72,0.33917165]
[1767614277633,6.97536126,135.77,135.72,0.33917165]
[1767614283239,0.32171782,135.75,135.69,6.97877054]
[1767614283936,0.32171782,135.75,135.7,0.34247054]
[1767614284534,6.95511782,135.75,135.7,0.34247054]
[1767614286340,6.95511782,135.75,135.7,6.97837054]
[1767614286532,0.32171782,135.75,135.7,6.97837054]
[1767614295850,0.32171782,135.75,135.71,6.6353]
[1767614296949,6.95421782,135.77,135.72,0.34247054]
[1767614302552,6.95461782,135.76,135.71,6.6353]
[1767614303457,6.95461782,135.76,135.7,6.97827054]
[1767614306572,0.32171782,135.76,135.71,6.97777054]
[1767614307165,0.32171782,135.75,135.69,0.34247054]
[1767614307371,6.95521782,135.75,135.69,0.34247054]
[1767614309272,6.6339,135.74,135.69,0.34247054]
[1767614316275,6.95521782,135.75,135.69,0.34247054]
[1767614317361,6.95521782,135.75,135.69,6.97877054]
[1767614322382,0.32171782,135.75,135.7,6.6358]
[1767614324677,0.32171782,135.75,135.71,6.6353]
[1767614324879,0.33193111,135.77,135.71,6.95760368]
[1767614325681,0.33193111,135.76,135.71,6.95760368]
[1767614327475,0.33193111,135.76,135.71,6.6353]
[1767614337894,0.31297074,135.75,135.7,0.32230368]
[1767614338487,0.31297074,135.75,135.66,100.79734926]
[1767614338488,0.31297074,135.78,135.71,0.33505306]
[1767614338701,5.91127019,135.77,135.71,0.33505306]
[1767614338990,0.31297074,135.77,135.71,0.33505306]
[1767614339191,6.94547074,135.77,135.72,0.33505306]
[1767614339603,6.6325,135.77,135.72,0.33505306]
[1767614340389,6.94497074,135.78,135.72,0.33505306]
[1767614340595,0.31297074,135.78,135.73,0.33505306]
[1767614346994,6.94497074,135.78,135.73,0.33505306]
[1767614353706,6.6325,135.77,135.73,0.33505306]
[1767614357701,6.6325,135.77,135.71,6.6354]
[1767614357903,6.6325,135.77,135.71,6.94876547]
[1767614358094,6.97160027,135.77,135.71,6.94876547]
[1767614358298,6.97160027,135.77,135.71,0.31336547]
[1767614371912,6.6325,135.77,135.72,0.32626731]
[1767614373616,6.9586545,135.77,135.72,0.32626731]
[1767614374514,0.3261545,135.77,135.72,0.32626731]
[1767614379420,2.51598404,135.77,135.72,0.32626731]
[1767614379919,6.6329,135.76,135.72,0.32626731]
[1767614381217,9.14848404,135.77,135.72,0.32626731]
[1767614382924,9.14848404,135.77,135.7,6.96206731]
[1767614383224,2.51598404,135.77,135.7,6.96206731]
[1767614383522,2.51598404,135.77,135.71,0.32626731]
[1767614384021,0.3261545,135.76,135.71,0.32626731]
[1767614385225,0.3261545,135.76,135.71,6.96156731]
[1767614387220,0.3261545,135.76,135.72,6.6349]
[1767614391932,0.3304644,135.78,135.73,6.634]
[1767614392130,0.3304644,135.78,135.73,6.94398206]
[1767614398340,0.3304644,135.78,135.74,6.6339]
[1767614401045,6.95404682,135.8,135.74,6.958389]
[1767614401241,2.18982954,135.79,135.74,6.958389]
[1767614401545,2.51277636,135.79,135.74,6.958389]
[1767614402646,2.51277636,135.79,135.74,0.324489]
[1767614404749,9.14427636,135.79,135.74,0.324489]
[1767614405852,2.51277636,135.79,135.74,0.324489]
[1767614410454,0.32294682,135.79,135.74,0.324489]
[1767614410655,2.51277636,135.79,135.74,0.324489]
[1767614410848,2.51277636,135.77,135.71,6.959389]
[1767614411056,2.51277636,135.77,135.72,0.324489]
[1767614412650,0.32294682,135.77,135.72,6.959289]
[1767614412957,2.51277636,135.78,135.73,0.324489]
[1767614414854,2.18982954,135.78,135.73,0.324489]
[1767614415157,2.51277636,135.81,135.74,0.324489]
[1767614415558,0.32294682,135.81,135.74,0.324489]
[1767614416556,0.32294682,135.81,135.75,0.324489]
[1767614416758,2.51277636,135.83,135.76,0.324489]
[1767614416950,2.51277636,135.79,135.73,0.324489]
[1767614417261,0.32294682,135.78,135.73,0.324489]
[1767614418263,2.51277636,135.78,135.73,0.324489]
[1767614418667,0.32294682,135.78,135.73,0.324489]
[1767614424259,0.32294682,135.78,135.73,6.958789]
[1767614426764,10.05279591,135.8,135.74,0.324489]
[1767614426963,87.36294682,135.81,135.74,0.324489]
[1767614427260,0.32294682,135.8,135.74,0.324489]
[1767614428766,0.32294682,135.8,135.75,0.324489]
[1767614428969,87.04,135.81,135.75,0.324489]
[1767614429166,0.32294682,135.82,135.75,0.324489]
[1767614429366,0.32294682,135.84,135.77,0.324489]
[1767614430564,3.42169591,135.83,135.77,0.324489]
[1767614430764,0.335462,135.82,135.75,0.34267953]
[1767614432666,6.965462,135.82,135.76,6.6329]
[1767614432868,0.335462,135.81,135.76,6.6329]
[1767614436075,3.75715791,135.81,135.75,0.34267953]
[1767614436575,0.335462,135.8,135.73,6.97667953]
[1767614436766,0.335462,135.78,135.7,0.34267953]
[1767614437368,0.335462,135.78,135.73,6.97707953]
[1767614437570,0.335462,135.78,135.73,0.34267953]
[1767614441179,3.75715791,135.77,135.72,6.6349]
[1767614441379,3.75715791,135.77,135.71,0.34267953]
[1767614441678,0.335462,135.76,135.69,35.82701199]
[1767614441983,0.335462,135.74,135.69,35.48433246]
[1767614442377,0.335462,135.74,135.71,0.05091797]
[1767614445081,6.969462,135.74,135.67,6.97997953]
[1767614445278,7.02259377,135.74,135.67,6.97997953]
[1767614448084,7.02259377,135.74,135.68,0.34267953]